Cogmind - Beta 9 @@@ ROGUE MODE // 2019.10.26 @ 21:45:02 Player: Gammalost Result: Self-destructed Performance ------------- Evolutions (4) 2000 Regions Visited (6) 1200 Robots Destroyed (52) 260 Value Destroyed (1826) 1826 Prototype IDs (2) 40 Alien Tech Used (0) 0 Bonus (237) 237 TOTAL SCORE: 5563 Bonus ------- High Alert Combat Kills 37 Entered Garrisons 200 Cogmind --------- Core Integrity 372/850 Matter 239/300 Energy 67/100 System Corruption 0% Temperature Cool (-100) Location -6/Garrison Parts ------- Power (2) Propulsion (5) Utility (4) Cryofiber Web Large Storage Unit Hacking Suite Weapon (4) Inventory (10) Fission Core Light Armor Plating EM Pulse Cannon Flak Cannon Peak State ------------ Power Deuterium Engine Improved Deuterium Engine Propulsion Aluminum Leg Aluminum Leg Aluminum Leg Carbon-fiber Leg Carbon-fiber Leg Utility Cryofiber Web Large Storage Unit Improved Light Armor Plating Hacking Suite Weapon High-powered Shock Rifle Electrolaser Precision Assault Rifle Heavy Machine Gun Inventory Light Deuterium Engine Light Deuterium Engine Aluminum Leg Aluminum Leg Light Armor Plating EM Pulse Cannon Heavy Assault Rifle Flak Cannon Shock Bomb Launcher Remote Datajack [Rating: 46] Favorites ----------- Power Light Deuterium Engine Engine Light Deuterium Engine Propulsion Aluminum Leg Leg Aluminum Leg Wheel Wheel Utility Cryofiber Web Device Cryofiber Web Storage Large Storage Unit Hackware Hacking Suite Protection Light Armor Plating Weapon Assault Rifle Energy Gun Heavy Laser Energy Cannon Heavy Plasma Cannon Ballistic Gun Assault Rifle Ballistic Cannon Flak Cannon Launcher Shock Bomb Launcher Special Weapon Remote Datajack Build | -11 -10 -9 -8 -7 -6 -6 ------- Run | Scr Mat Mat Mat Fac Fac Gar Slots Evolved 8 | . . 2 2 2 2 . Power 1 | . . . . 1 . . Propulsion 3 | . . 1 . 1 1 . Utility 2 | . . 1 1 . . . Weapon 2 | . . . 1 . 1 . Parts Attached 77 | 6 1 14 23 12 12 9 Power 8 | 1 . 1 2 2 1 1 Engine 8 | 1 . 1 2 2 1 1 Core . | . . . . . . . Reactor . | . . . . . . . Propulsion 20 | 2 . 6 5 3 2 2 Treads . | . . . . . . . Leg 19 | 2 . 5 5 3 2 2 Wheel 1 | . . 1 . . . . Hover . | . . . . . . . Flight . | . . . . . . . Utility 16 | 1 1 2 9 2 1 . Device 3 | . . . 3 . . . Storage 5 | 1 . 1 3 . . . Processor . | . . . . . . . Hackware 1 | . . . . 1 . . Protection 7 | . 1 1 3 1 1 . Artifact . | . . . . . . . Weapon 33 | 2 . 5 7 5 8 6 Energy Gun 9 | 1 . 3 2 1 2 . Energy Cannon 2 | . . . 1 . 1 . Ballistic Gun 14 | 1 . 1 4 1 4 3 Ballistic Cannon 1 | . . . . 1 . . Launcher 6 | . . 1 . 2 1 2 Special Weapon 1 | . . . . . . 1 Impact Weapon . | . . . . . . . Slashing Weapon . | . . . . . . . Piercing Weapon . | . . . . . . . Special Melee Weapon . | . . . . . . . Unidentified Prototypes 2 | . . 1 . 1 . . Parts Lost 21 | . . 1 3 1 . 16 Power 5 | . . 1 1 . . 3 Propulsion 6 | . . . . . . 6 Utility 2 | . . . 1 . . 1 Weapon 8 | . . . 1 1 . 6 Highest Loss Streak 16 | . . 1 3 1 . 16 Average Slot Usage (%) 96 | . 96 94 97 99 99 88 Engine 11 | . 14 10 8 15 13 10 Leg 28 | . 28 25 26 30 33 27 Device 7 | . . . 13 11 6 6 Storage 12 | . 14 21 12 7 6 6 Hackware 1 | . . . . 3 6 6 Protection 8 | . 10 11 8 7 6 5 Energy Gun 8 | . 14 8 9 6 8 5 Energy Cannon 2 | . . . 3 . 3 4 Ballistic Gun 11 | . 14 13 13 6 10 10 Ballistic Cannon 1 | . . . . 6 2 . Naked Turns . | . . . . . . . Heaviest Build 61 | 13 16 18 39 51 60 61 Greatest Support 60 | 20 20 30 44 59 60 60 Greatest Overweight (x) 4 | 4 . . 1 1 . 2 Average Overweight (x) . | . . . . . . . Largest Inventory Capacity 14 | 6 6 6 14 10 10 10 Average Capacity 8 | 5 6 6 9 10 10 10 Most Carried 10 | 6 6 6 10 10 10 10 Average Carried 8 | 3 5 5 9 9 9 9 Final Capacity 10 | . . . . . . 10 Final Carried 4 | . . . . . . 4 Class Distribution -------------------- 54% | Scavenger-Tank 37% | Mutant 6% | Tank Dominant Class ---------------- Mutant | -10/Materials Mutant | -9/Materials Scavenger-Tank | -8/Materials Scavenger-Tank | -7/Factory Scavenger-Tank | -6/Factory Scavenger-Tank | -6/Garrison Resources | -11 -10 -9 -8 -7 -6 -6 ----------- Run | Scr Mat Mat Mat Fac Fac Gar Matter Collected 1678 | 258 30 325 433 287 269 76 Remotely 99 | . . . 99 . . . Salvage Created 2067 | . 56 413 642 653 157 146 Parts 104 | . 3 20 34 32 7 8 Haulers Intercepted . | . . . . . . . Recyclers Shooed . | . . . . . . . Parts Field Recycled . | . . . . . . . Retrieved Matter . | . . . . . . . Parts Self-Destructed . | . . . . . . . Prevented . | . . . . . . . Kills | -11 -10 -9 -8 -7 -6 -6 ------- Run | Scr Mat Mat Mat Fac Fac Gar Combat Hostiles Destroyed 45 | . . 11 10 15 5 4 Guns 28 | . . 11 7 7 2 1 Cannons 7 | . . . 2 3 1 1 AOE 10 | . . . 1 5 2 2 Classes Destroyed 7 | . 1 4 1 1 . . Worker 4 | . 2 . 2 . . . Recycler 2 | . . . 1 1 . . Watcher 1 | . . 1 . . . . Swarmer 16 | . . 3 . 7 3 3 Grunt 21 | . . 6 8 5 1 1 Sentry 7 | . . 2 2 2 1 . Programmer 1 | . . . . 1 . . Best Kill Streak 5 | . 2 3 5 5 3 2 Combat Bots Only 4 | . . 3 3 4 3 2 Max Kills in Single Turn 4 | . 1 1 1 4 3 1 Gunslinging . | . . . . . . . Exploded 3 | . . . 1 3 2 1 Melee . | . . . . . . . Uniques/NPCs Destroyed . | . . . . . . . Combat | -11 -10 -9 -8 -7 -6 -6 -------- Run | Scr Mat Mat Mat Fac Fac Gar Damage Taken 4032 | . 22 534 686 914 260 1616 Core 729 | . . 70 102 79 71 407 Absorbed by Shields . | . . . . . . . Core Remaining (%) 90 | 100 100 82 81 88 . . Volleys Fired 123 | 4 2 29 34 26 6 22 Largest 4 | 2 2 2 3 3 4 4 Hottest 217 | 60 60 65 155 160 211 217 Shots Fired 311 | 8 4 58 91 76 23 51 Gun 246 | 8 4 56 87 43 17 31 Cannon 46 | . . . 4 26 5 11 Launcher 16 | . . 2 . 7 1 6 Special 3 | . . . . . . 3 Kinetic 189 | 4 2 40 67 45 11 20 Thermal 59 | . . . 8 20 9 22 Explosive 2 | . . 2 . . . . Electromagnetic 58 | 4 2 16 16 11 3 6 Robot Hit Streak 17 | 2 1 17 11 14 9 7 Robot Miss Streak 8 | 2 4 2 2 5 8 6 Penetration Max . | . . . . . . . Secondary Targets 2 | . . 1 1 . . . Max Gunslinging Chain 1 | . . 1 1 . . . Shots Hit Robots 191 | 4 1 39 63 53 14 17 Core Hits 111 | 1 2 20 29 34 9 16 Critical Hits 3 | . . 1 2 . . . Critical Kills 2 | . . . 2 . . . Critical Parts Destroyed 1 | . . 1 . . . . Melee Attacks . | . . . . . . . Impact . | . . . . . . . Slashing . | . . . . . . . Piercing . | . . . . . . . Sneak Attacks . | . . . . . . . Combat Hostiles . | . . . . . . . Follow-up Attacks . | . . . . . . . Damage Inflicted 4174 | 49 24 696 1025 1241 566 573 Guns 2391 | 49 24 512 767 589 200 250 Cannons 684 | . . . 78 335 139 132 Explosions 1099 | . . 184 180 317 227 191 Melee . | . . . . . . . Ramming . | . . . . . . . Kinetic 1883 | 36 11 340 573 554 170 199 Thermal 1337 | . . 98 291 388 377 183 Explosive 86 | . . 86 . . . . Electromagnetic 868 | 13 13 172 161 299 19 191 Impact . | . . . . . . . Slashing . | . . . . . . . Piercing . | . . . . . . . Highest Corruption 1 | . 1 . . . . . Average Corruption 1 | . 1 . . . . . Corruption Purged . | . . . . . . . Overload Shots . | . . . . . . . Overflow Damage 82 | . . 11 52 2 . 17 Projectiles 17 | . . . . . . 17 Explosions 65 | . . 11 52 2 . . Melee . | . . . . . . . Knockbacks 7 | . . . . 7 . . Impact . | . . . . . . . Kinetic 6 | . . . . 6 . . Secondary 1 | . . . . 1 . . Self-Inflicted Damage 204 | . . 77 54 55 . 18 Shots 6 | . . 2 1 2 . 1 Rammed . | . . . . . . . Targets Rammed . | . . . . . . . Kicked . | . . . . . . . Crushed . | . . . . . . . Highest Temperature 666 | . 18 51 138 376 334 666 Average Temperature 137 | . 9 24 63 125 142 242 Received Heat Transfer 1098 | . 12 129 342 267 51 297 Effects 11 | . . . . 2 . 9 Energy Bleed 2 | . . . . 1 . 1 Interference 1 | . . . . . . 1 Matter Decay 4 | . . . . 1 . 3 Short Circuit 2 | . . . . . . 2 Damage (minor) 1 | . . . . . . 1 Damage (core) 1 | . . . . . . 1 Siege Activations . | . . . . . . . Robots Corrupted . | . . . . . . . Combat Hostiles . | . . . . . . . Parts Fried 1 | . . . . 1 . . Impact Corruptions . | . . . . . . . Robots Melted . | . . . . . . . Combat Hostiles . | . . . . . . . Parts Melted 4 | . . . . . 4 . Heat Transferred 1862 | . . 150 322 692 387 311 Parts Sabotaged . | . . . . . . . Parts Stolen . | . . . . . . . Parts Stripped . | . . . . . . . Power Chain Reactions 6 | . . 2 1 3 . . Missiles Intercepted . | . . . . . . . Alert | -11 -10 -9 -8 -7 -6 -6 ------- Run | Scr Mat Mat Mat Fac Fac Gar Peak Influence 499 | . 10 227 254 399 499 414 Average Influence 167 | . 4 69 157 199 342 356 Maximum Alert Level 2 | . . 1 1 1 2 2 Low Security (%) 62 | . . . . . . . Level 1 29 | . . . . . . . Level 2 7 | . . . . . . . Level 3 . | . . . . . . . Level 4 . | . . . . . . . Level 5 . | . . . . . . . High Security . | . . . . . . . Max Security . | . . . . . . . Squads Dispatched 8 | . . 3 1 3 1 . Investigation 3 | . . 2 1 . . . Extermination 1 | . . . . 1 . . Reinforcement 3 | . . 1 . 2 . . Assault . | . . . . . . . Garrison 1 | . . . . . 1 . Intercept . | . . . . . . . Construction Impeded 1 | . . . . 1 . . Haulers Reinforced . | . . . . . . . Stealth | -11 -10 -9 -8 -7 -6 -6 --------- Run | Scr Mat Mat Mat Fac Fac Gar Distress Signals . | . . . . . . . Communications Jammed . | . . . . . . . Distress Signals . | . . . . . . . Times Spotted 61 | . 1 15 10 16 5 14 Peak Tracking Total 5 | . 1 3 3 4 3 5 Tactical Retreats 5 | . . 1 . 1 . 3 Traps | -11 -10 -9 -8 -7 -6 -6 ------- Run | Scr Mat Mat Mat Fac Fac Gar Traps Triggered 5 | . 1 1 . 2 . 1 Indirectly 3 | . . . . 2 . 1 Trap Hack Attempts . | . . . . . . . Triggered . | . . . . . . . Disarmed 2 | . 2 . . . . . Reprogrammed 1 | . . . 1 . . . Reused . | . . . . . . . Traps Extracted . | . . . . . . . Installed . | . . . . . . . Triggered . | . . . . . . . Machines | -11 -10 -9 -8 -7 -6 -6 ---------- Run | Scr Mat Mat Mat Fac Fac Gar Machines Disabled 9 | . . 1 . 1 7 . Max in Single Turn 7 | . . 1 . 1 7 . Machines Sabotaged . | . . . . . . . Garrisons Compromised . | . . . . . . . Overloaded Fab Kills . | . . . . . . . Fab Network Shutdowns . | . . . . . . . Hacking | -11 -10 -9 -8 -7 -6 -6 --------- Run | Scr Mat Mat Mat Fac Fac Gar Machines Accessed 21 | . 4 4 6 4 3 . Terminals 15 | . 4 3 4 2 2 . Fabricators 1 | . . . . 1 . . Repair Stations 1 | . . . 1 . . . Recycling Units . | . . . . . . . Scanalyzers 3 | . . 1 1 1 . . Garrison Access 1 | . . . . . 1 . Total Hacks 52 | . 10 10 17 10 5 . Successful 29 | . 7 5 10 5 2 . Failed 23 | . 3 5 7 5 3 . Catastrophic 5 | . 1 1 1 1 1 . Database Lockouts . | . . . . . . . Manual 16 | . 3 3 5 2 3 . Terminals 36 | . 10 9 9 4 4 . Fabricators 2 | . . . . 2 . . Repair Stations 6 | . . . 6 . . . Recycling Units . | . . . . . . . Scanalyzers 7 | . . 1 2 4 . . Garrison Access 1 | . . . . . 1 . Terminal Hacks 18 | . 7 5 3 2 1 . Record 7 | . 3 4 . . . . Alert Level 1 | . 1 . . . . . Locate Traps 1 | . . . 1 . . . Disarm Traps 1 | . 1 . . . . . Reprogram Traps 4 | . . 1 2 1 . . Patrol Status 1 | . 1 . . . . . Hauler Manifests 1 | . 1 . . . . . Zone Layout 2 | . . . . 1 1 . Fabricator Hacks 1 | . . . . 1 . . Build 1 | . . . . 1 . . Repair Station Hacks 5 | . . . 5 . . . Scan Component 3 | . . . 3 . . . Repair 2 | . . . 2 . . . Recycling Unit Hacks . | . . . . . . . Scanalyzer 4 | . . . 2 2 . . Insert Component 2 | . . . 1 1 . . Analyze 2 | . . . 1 1 . . Garrison Access Hacks 1 | . . . . . 1 . Unlock Access 1 | . . . . . 1 . Unauthorized Hacks . | . . . . . . . Terminals . | . . . . . . . Fabricators . | . . . . . . . Repair Stations . | . . . . . . . Recycling Units . | . . . . . . . Scanalyzers . | . . . . . . . Garrison Access . | . . . . . . . Data Cores Recovered . | . . . . . . . Used . | . . . . . . . Hacking Detections 19 | . 4 4 6 3 2 . Full Trace Events 3 | . . 2 1 . . . Feedback Events . | . . . . . . . Feedback Blocked . | . . . . . . . Robot Schematics Acquired . | . . . . . . . Robots Built 1 | . . . . 1 . . Matter 219 | . . . . 219 . . Time 58 | . . . . 58 . . Total Robot Build Rating 3 | . . . . 3 . . Part Schematics Acquired 2 | . . . 1 1 . . Parts Built . | . . . . . . . Matter . | . . . . . . . Time . | . . . . . . . Total Part Build Rating . | . . . . . . . Parts Repaired 2 | . . . 2 . . . Time 64 | . . . 64 . . . Parts Recycled . | . . . . . . . Recycled Matter . | . . . . . . . Retrieved Matter . | . . . . . . . Retrieved Components . | . . . . . . . Parts Scanalyzed 2 | . . . 1 1 . . Part Schematics Acquired 2 | . . . 1 1 . . Parts Damaged . | . . . . . . . Bothacking | -11 -10 -9 -8 -7 -6 -6 ------------ Run | Scr Mat Mat Mat Fac Fac Gar Used RIF Installer . | . . . . . . . Robots Hacked . | . . . . . . . Non-combat . | . . . . . . . Combat . | . . . . . . . Robot Hacks Applied . | . . . . . . . Relay Couplers Released . | . . . . . . . Robots Rewired . | . . . . . . . Allies Hacked . | . . . . . . . Hacks Repelled . | . . . . . . . Allies | -11 -10 -9 -8 -7 -6 -6 -------- Run | Scr Mat Mat Mat Fac Fac Gar Total Allies 1 | . . . . 1 . . Largest Group 1 | . . . . 1 . . Highest-Rated Group 26 | . . . . 26 . . Highest-Rated Ally 26 | . . . . 26 . . Total Orders . | . . . . . . . Ally Attacks . | . . . . . . . Total Damage . | . . . . . . . Kills . | . . . . . . . Allies Corrupted . | . . . . . . . Allies Melted . | . . . . . . . Intel | -11 -10 -9 -8 -7 -6 -6 ------- Run | Scr Mat Mat Mat Fac Fac Gar Robot Analysis Total . | . . . . . . . Derelict Logs Recovered . | . . . . . . . Drone Launches . | . . . . . . . Drone Recoveries . | . . . . . . . Exploration | -11 -10 -9 -8 -7 -6 -6 ------------- Run | Scr Mat Mat Mat Fac Fac Gar Turns Passed 3221 | 108 262 747 783 645 432 244 Spaces Moved 1701 | 56 207 401 376 253 276 132 Core 17 | 17 . . . . . . Treads . | . . . . . . . Legs 1684 | 39 207 401 376 253 276 132 Wheels . | . . . . . . . Hover . | . . . . . . . Flight . | . . . . . . . Fastest Speed 50 | 50 120 120 120 120 120 120 Average Speed 123 | 143 120 120 130 120 120 125 Slowest Speed 250 | 250 120 120 150 150 120 180 Overloaded Moves . | . . . . . . . Propulsion Burnouts . | . . . . . . . Robots Hopped . | . . . . . . . Cave-ins Triggered . | . . . . . . . Exploration Rate (%) 18 | 5 33 33 29 6 7 17 Regions Visited 6 Branch Regions . Pre-discovered Areas . | . . . . . . . Known Exits Taken 1 | . . . . . 1 . Unknown Exits Taken 5 | 1 1 1 1 1 . . Scrap Searched . | . . . . . . . Spaces Dug . | . . . . . . . Terrain Destroyed 81 | . . 15 9 13 43 1 Melee . | . . . . . . . Projectile 1 | . . . . . . 1 AOE 80 | . . 15 9 13 43 . Actions | -11 -10 -9 -8 -7 -6 -6 --------- Run | Scr Mat Mat Mat Fac Fac Gar Total 2566 | 73 217 611 599 534 361 171 Wait 608 | . 4 155 145 235 61 8 Move 1695 | 55 206 400 375 252 275 132 Hop . | . . . . . . . Pick Up 25 | 8 2 4 7 3 1 . Fast Attach 20 | 4 1 2 8 1 4 . Attach 22 | 2 . 4 5 2 3 6 Detach 5 | . . 1 2 . 2 . Swap 35 | . . 8 10 9 5 3 Drop 33 | . 2 8 13 6 4 . Fire 123 | 4 2 29 34 26 6 22 Melee . | . . . . . . . Ram . | . . . . . . . Kick . | . . . . . . . Crush . | . . . . . . . Escape Stasis . | . . . . . . . Rewire . | . . . . . . . Trap . | . . . . . . . Miscellaneous . | . . . . . . . Route ------- -11/Scrapyard -10/Materials -9/Materials -8/Materials -7/Factory -6/Factory (discovered 2 exits: [*Low] / Gar) -6/Garrison History --------- Turn | Location | Event 33 | -11/Scrapyard | Discovered new exit (range 15) 109 | -11/Scrapyard | Entered Materials 231 | -10/Materials | Discovered new exit (range 4) 315 | -10/Materials | Build established: Mutant 371 | -10/Materials | Entered another Materials area 371 | -9/Materials | Evolved 2 slots: Propulsion x1, Utility x1 989 | -9/Materials | Discovered new exit (range 16) 1118 | -9/Materials | Entered another Materials area 1118 | -8/Materials | Evolved 2 slots: Utility x1, Weapon x1 1376 | -8/Materials | Lost 3 parts (1p1u1w) 1625 | -8/Materials | Repaired Lgt. Armor Plating 1664 | -8/Materials | Repaired Carbon-fiber Leg 1777 | -8/Materials | Discovered new exit (range 15) 1901 | -8/Materials | Entered Factory 1901 | -7/Factory | Evolved 2 slots: Power x1, Propulsion x1 1939 | -7/Factory | Build established: Scavenger-Tank 2142 | -7/Factory | Fabricated O-24 Administrator (x1) 2154 | -7/Factory | Discovered new exit (range 13) 2546 | -7/Factory | Entered another Factory area 2546 | -6/Factory | Evolved 2 slots: Propulsion x1, Weapon x1 2880 | -6/Factory | Discovered new exit (range 10) 2899 | -6/Factory | Garrison activated, responded to threat 2976 | -6/Factory | Identified exit to Garrison 2978 | -6/Factory | Entered Garrison 3150 | -6/Garrison | Triggered checkpoint 3222 | -6/Garrison | Core integrity fell below 50% 3222 | -6/Garrison | Self-destructed Last Messages --------------- 03175_ Energy bleed averted by Cryofiber Web. 03175_ Hvy. Plasma Cannon destroyed. 03176_ Power failure averted by Cryofiber Web. 03177_ Overheating: Energy bleed (-58). 03177_ Imp. Deuterium Engine destroyed. 03181_ Flak Gun severed. 03182_ Destroyed Imp. Deuterium Engine. 03190_ Acquired 8 matter. 03195_ Imp. Light Armor Plating destroyed. 03195_ Jacked L-41 Fighter... 03197_ Lgt. Deuterium Engine destroyed. 03199_ Aluminum Leg severed. 03200_ Jacked L-41 Fighter... 03204_ Electrolaser destroyed. 03205_ Aluminum Leg destroyed. 03205_ Jacked L-41 Fighter... 03207_ Hvy. Machine Gun destroyed. 03213_ Remote Datajack destroyed. 03213_ Aluminum Leg destroyed. 03220_ Hvy. Assault Rifle destroyed. Map ----- +----------------------------------------------------+ | ?????????????????????????????????????????????????? | | ?????????????????????????????????????????????????? | | ?????????????????????????????????????????????????? | | ?????????????????????????????????????????????????? | | ?????????????????????????????????????????????????? | | ?????????????????????????????????????????????????? | | ?????????????????????????????????????????????????? | | ?????????????????????????????????????????????????? | | ?????????????????????????????????????????????????? | | ?????????????????????????????????????????????????? | | ?????????????????????????????????????????????????? | | ???????#####?????????????????????????????????????? | | ???????# #?????????????????????????????????????? | | ???????# #############?????????????????????????? | | ???????# #?????????????????????????? | | ???????# #?????????????????????????? | | ???????############## #?????????????????????????? | | ????????????????????# #?????????????????????????? | | ????????????????????# #?????????????????????????? | | ?????????????######## ####??????????????????????? | | ?????? ; " #??????????????????????? | | ?????????????########*[## #??????????????????????? | | ??????????????# #####= ##;########???????????????? | | ??????????????# == g #???????????????? | | ??????????????# ##### ^ l #???????????????? | | ????????????????????# ##@#####[ #???????????????? | | ????????????????????# ## #???# #???????????????? | | ????????????????????# ##g##### #???????????????? | | ????????????????????# ## # #???????????????? | | ????????????????????# ## ##### #???????????????? | | ????????????????????# ## #???# #???????????????? | | ????????????????????# ## #???# #???????????????? | | ????????????????????# ## #???# ##""""??????????? | | ????????????????????# ##+#### ?????????? | | ????????????????????# ?????????? | | ????????????????????# ?????????? | | ????????????????????########## "# #?????????? | | ?????????????????????????????# ## #?????????? | | ?????????????????????????????" ?? = ????????? | | ?????????????????????????????" ?? %! ???????? | | ?????????????????????????????" ??? = ??????? | | ?????????????????????????????" ??? ????? | | ?????????????????????????????# ##??? ## ?????? | | ?????????????????????????????# ^ #?????#? ?????? | | ????????????????????????????? ????????????????? | | ????????????????????????????? ????????????????? | | ?????????????????????????????# ????????????????? | | ??????????????????????????????# ????????????????? | | ?????????????????????????????????????????????????? | | ?????????????????????????????????????????????????? | +----------------------------------------------------+ Best States ------------- Heat Dissipation 37 Energy Generation 25 Energy Capacity 465 Matter Stores 350 Matter Capacity 350 Sight Range 16 Terrain Scan Density 10 Additional Mass Support 9 Base Temperature (-) 100 Armor Coverage 300 Evasion (%) 40 Offensive Hacking 10 Item Schematics ----------------- Carbon-fiber Leg | -8/Materials | Scanalyzed Shock Bomb Launcher | -7/Factory | Scanalyzed Robot Schematics ------------------ None Fabricated ------------ O-24 Administrator | x1 | -7/Factory | Preloaded Alien Tech Used ----------------- None Achievements -------------- My Command Is Your Wish Shopping List Challenges ------------ None Game ------ Seed AlloyInsulatedPurifier Manual? 0 Play Time 00:57:25 Cumulative 10.4 hours Start 2019.10.26 @ 20:50:21 End 2019.10.26 @ 21:45:02 Sessions 1 Manual Loads 0 Difficulty Rogue Special Mode None Game No. 19 Rogue 19 Adventurer 0 Explorer 0 Win Type - Total 0 Types 0/0/0/0/0/0/0 Lore% 5 Gallery% 18 Achievement% 13 Wizard Run 0 Options --------- ASCII 0 Keyboard 1 Movement Numpad Keybinds 0 Fullscreen 1 Font 18/SmallcapsGlow Map View 76x50 Tactical HUD 1 Map Filters NONE Filters NONE Steam 1 RUN: 154c51e1-df62-40c4-8277-4a102adeb85a